{"text_format":"1","workbook":"xlsx","n_sheets":5,"sheets":["ANKIETA OGÓLNA","Arkusz1","usługowo-handlowe","produkcyjne","LISTY"],"not_rendered":{"charts":0,"images":3,"macros":1,"external_links":1,"defined_names":9,"comments":0,"pivot_tables":0},"unopened":[],"bounds":{"document_bytes":16777216,"sheet_cells":100000,"rows_first":2000,"rows_last":500,"rows_between":2000,"halvings":0,"cell_chars":16384,"cell_head_chars":4096},"cells_cut":0,"cells_raw":0,"read":"whole","date_system":"1900"}

{"sheet":"ANKIETA OGÓLNA","index":0,"n_rows":47,"n_cols":11,"rows_kept":47,"cut":false,"hidden":false,"merged":[[25,0,28,0],[25,4,25,9],[26,4,26,9],[27,4,27,9],[28,4,28,9],[46,1,47,9],[29,3,29,6],[29,7,29,9],[5,4,17,9],[3,1,3,9],[23,1,23,2],[23,4,23,9],[24,1,24,2],[24,4,24,9],[21,1,22,2],[21,3,22,3],[25,1,28,1],[22,4,22,9],[37,2,38,9],[1,0,1,9],[0,0,0,9],[2,1,2,9],[19,1,19,9],[20,1,20,3],[18,4,18,9],[2,0,3,0],[4,0,4,9],[5,3,18,3]]}
[]
["ANKIETA REKRUTACYJNA DO IV NABORU DO PROJEKTU nr:  "]
[null,"I.METRYCZKA"]
[null,"Szanowny Przedsiębiorco,\njeżeli jesteś zainteresowany udziałem w projekcie System Wczesnego Ostrzegania dla MMŚP w okresowych trudnościach (zwanym dalej SWO), prosimy o wypełnienie formularza rekrutacyjnego - poniższy formularz obowiązuje w ramach IV naboru, przesłanie zgłoszenia z nieaktualnym formularzem skutkować będzie odmową uczestnictwa w Projekcie.\n"]
[]
[null,"Nazwa przedsiębiorstwa",null,null,"Definicja wielkości przedsiębiorstwa:\n\nMikroprzedsiębiorstwo – zatrudnia mniej niż 10 pracowników; obrót roczny lub roczna suma bilansowa nie przekracza 2 mln EUR\n\nMałe przedsiębiorstwo – zatrudnia mniej niż 50 pracowników; obrót roczny lub roczna suma bilansowa nie przekracza 10 mln EUR\n\nŚrednie przedsiębiorstwo – zatrudnia mniej niż 250 pracowników; obrót roczny nie przekracza 50 mln EUR lub roczna suma bilansowa nie przekracza 43 mln EUR\n"]
[null,"NIP"]
[null,"Imię i nazwisko osoby wypełniającej ankietę "]
[null,"Funkcja w przedsiębiorstwie (stanowisko)"]
[null,"Data rozpoczęcia działalności gospodarczej "]
[null,"Forma prowadzonej działalności "]
[null,"PKD wiodący"]
[null,"Telefon do kontaktu"]
[null,"Adres e-mail do kontaktu "]
[null,"Adres formalnej siedziby przedsiębiorstwa"]
[null,"Województwo"]
[null,"Status aktywności przedsiębiorstwa"]
[null,"Wielkość przedsiębiorstwa"]
[]
[null,"II KRYTERIA UDZIAŁU W PROJEKCIE SWO"]
[null,null,null,null,"M-6","M-5","M-4","M-3","M-2","M-1","W przypadku drukowania tego pliku prosimy o ukrycie tej kolumny."]
[1,"Spadek wartości sprzedaży towarów lub usług przedsiębiorstwa w okresie 6 miesięcy przed datą zgłoszenia do projektu. \nJeśli we wskazanych wartościach z ostatnich 6 miesięcy nie utrzymuje się stały spadek sprzedaży, konieczne jest uzasadnienie wskazania tego kryterium.",null,null,null,null,null,null,null,null,"Pytania pomocnicze. Prosimy o zwięzłe, ale konkretne uzasadnienie."]
[null,null,null,null,{"$f":"IF(D22=\"tak\",\"Uzupełnij wartości powyżej oraz uzasadnij\",\"\")","v":""},null,null,null,null,null,"Jeśli dane finansowe z ostatnich 6 miesięcy nie pokazują stałej tendencji spadkowej, proszę wpisać uzasadnienie zawierające opis sytuacji i przyczyn ewentualnych wzrostów przychodów."]
[2,"Czy wystąpiły istotne zmiany kadrowe mające wpływ na prowadzoną działalność gospodarczą (odpływ kluczowego personelu) w okresie co najmniej 2 ostatnich miesięcy przed dniem zgłoszenia do projektu?\nJeśli tak, konieczne jest  uzasadnienie.",null,null,null,null,null,null,null,null,"Proszę zwięźle opisać ilu pracowników odeszło w określonym w warunku czasie, jakie zajmowali stanowiska, jak to wpłynęło na prowadzoną działalność."]
[3,"Czy wystąpiły niezależne od przedsiębiorcy i prowadzonej działalności istotne zmiany prawne/ technologiczne w branży (zwłaszcza cyfryzacja przemysłu), wymuszające konieczność zmian w organizacji firmy lub jej przebranżowienia?\nJeśli tak, konieczne jest  uzasadnienie.",null,null,{"$f":"IF(D25=\"tak\",\"Uzasadnij\",\"\")","v":""},null,null,null,null,null,"Zmiany prawne: Proszę powołać się na konkretną weryfikalną zmianę prawną (np. rozporządzenie, ustawa, inne regulacje o charakterze prawnym) oraz uzasadnić jak wpływa ona na Państwa przedsiębiorstwo i prowadzoną działalność gospodarczą.\n\nZmiany technologiczne: Proszę powołać się na konkretną zmianę (przepisy, zmiany technologii, oprogramowania itd) oraz uzasadnić jak wpływa to na Państwa przedsiębiorstwo."]
[4,"Które z opisanych sytuacji dotyczą przedsiebiorstwa i mają wpływ na obecną lub przyszłą kondycję przedsiębiorstwa? Do kwalifikacji na podstawie tego kryterium wymagane zaznaczenie co najmniej 2 pól z 2 różnych kategorii.","Sytuacja gospodarcza w branży, tzn.:\n      Obecna koniunktura dla branży jest niekorzystna;\n      Obecny popyt na świadczone usługi/ produkty spadł;\n      Ceny materiałów, sprzętu potrzebnego do prowadzenia działalności wzrosły; \n      Nastąpił przestój ekonomiczny (tj. okres niewykonywania pracy przez przedsiębiorcę/pracownika z przyczyn niedotyczących przedsiębiorcy/pracownika pozostającego w gotowości do pracy).",null,"",null,null,null,null,null,"Proszę zwięźle podać jaka zmiana gospodarcza w branży wpływa negatywnie na Państwa przedsiębiorstwo i jakie konsekwencje niesie."]
[null,null,"Sytuacja na rynku pracy, tzn.:\n      Dostępność wykwalifikowanych pracowników spadła;\n      Od ponad 6 miesięcy nie można zatrudnić pracownika na wolne miejsce pracy;\n      Koszty zatrudnienia pracowników wzrosły.",null,"",null,null,null,null,null,"Proszę zwięźle opisać jaki problem rynku pracy w Państwa branży dotyka Państwa najbardziej oraz jak wpływa na prowadzoną działalność."]
[null,null,"Dostęp przedsiębiorstwa do kapitału, tzn.:\n      Występują problemy z terminowym regulowaniem płatności przez kontrahentów;\n      Występują problemy z terminowym regulowaniem  zobowiązań finansowych wobec dostawców i partnerów biznesowych.",null,"",null,null,null,null,null,"Proszę podać w jakim okresie występują trudności z regulowaniem zobowiązań, jak długo trwają, przez którą ze stron, jakie konsekwencje to niesie. "]
[null,null,"Postęp technologiczny wyprzedzający wprowadzane zmiany w przedsiębiorstwie, takie jak: \n      Brak cyfryzacji, wdrożenia i zastosowania nowych technologii.",null,"",null,null,null,null,null,"Jeśli widzą Państwo ryzyko postępu technologicznego w branży, który wyprzedzać będzie Państwa możliwości dostosowania się, proszę podać konkretne, planowane lub wymuszane przez otoczenie w branży zmiany, np. narzucanie konkretnych technologii, planowane wycofanie stosowanych obecnie technologii itd."]
[5,"Proszę o uzupełnienie danych finansowych przedsiębiorstwa. Proszę wybrać właściwą zakładkę.",null,"Działalność usługowo-handlowa – przykładowy zakres działów PKD 41 – PKD 43; PKD 45 - PKD 47, PKD 49 – PKD 68; PKD 77 – PKD 82; PKD 94 – PKD 96;",null,null,null,"Działalność produkcyjna – przykładowy zakres działów PKD 5 –PKD 39."]
[]
[]
[]
[]
[]
[6,"Wynik analizy finansowej przedsiębiorstwa*:",null,null,null,{"$f":"'usługowo-handlowe'!D20","v":{"$error":"#DIV/0!"}},null,null,{"$f":"produkcyjne!D21","v":{"$error":"#DIV/0!"}}]
[]
[null,null,"*Brak poprawnego wyniku analizy finansowej przedsiębiorstwa w oparciu o proponowany model**, świadczy o tym, że sytuacja przedsiębiorstwa nie mieści się w przyjętym modelu autodiagnozy i wymaga pogłębionej analizy finansowej dokonanej przez konsultanta na etapie Diagnozy na podstawie dodatkowych informacji finansowych. "]
[]
[]
[null,"III OŚWIADCZENIE"]
[null,"Oświadczam, że wszystkie dane wskazane powyżej są prawdziwe. "]
[]
[]
[null,null,"Data, podpis osoby upoważnionej do reprezentacji przedsiębiorstwa"]
[]
[null,"**Zastosowane wzory do analizy finansowej przedsiebiorstwa zostały zaczerpnięte z raportów powstałych w ramach Projektu badawczego pn.: Monitorowanie bieżącej sytuacji gospodarczej w sektorze - badania 2016 - 2018 współfinansowanego z Europejskiego Funduszu Rozwoju Regionalnego w ramach Poddziałania 2.4.2 Programu Operacyjnego Inteligentny Rozwój, kontynuujących badania podjęte w ramach projektu PARP \"Instrument Szybkiego Reagowania\"."]

{"sheet":"Arkusz1","index":1,"n_rows":10,"n_cols":1,"rows_kept":10,"cut":false,"hidden":true,"merged":[]}
["Kolumna1"]
["jednoosobowa działalność gospodarcza"]
["spółka cywilna"]
["spółka jawna"]
["spółka partnerska"]
["spółka komandytowa"]
["spółka komandytowa-akcyjna"]
["spółka z ograniczoną odpowiedzialnością"]
["spółka akcyjna"]
["inne"]

{"sheet":"usługowo-handlowe","index":2,"n_rows":28,"n_cols":5,"rows_kept":28,"cut":false,"hidden":false,"merged":[]}
["Przedsiębiorstwa usługowo-handlowe - nabór IV"]
["Proszę o zweryfikowanie kondycji przedsiębiorstwa w oparciu o dane finansowe przedsiębiorcy w okresie 6 miesięcy przed datą zgłoszenia do Projektu."]
[]
["Proszę podać których 6 miesięcy dotyczą poniższe dane (np. 07.2021-12.2021):"]
[]
["Dane do wyliczenia wskaźników","wartość",null,"Rentowność ","wartość"]
["zysk (strata) netto",0,null,"Wskaźnik rentowności sprzedaży",{"$f":"B7/B8","v":{"$error":"#DIV/0!"}}]
["przychody netto ze sprzedaży produktów, towarów i materiałów*",0,null,"Wskaźnik rentowności aktywów",{"$f":"B7/B9","v":{"$error":"#DIV/0!"}}]
["aktywa razem*",0]
[]
[]
["Dane do wyliczenia wskaźnika","wartość",null,"Analiza zadłużenia przedsiębiorstwa   ","wartość"]
["zysk (strata) netto plus amortyzacja",0,null,"Wskaźnik zdolności obsługi zadłużenia ",{"$f":"B13/B14","v":{"$error":"#DIV/0!"}}]
["zobowiązania i rezerwy na zobowiązania*",0,null,"Wskaźnik zadłużenia ogółem  ",{"$f":"B14/B16","v":{"$error":"#DIV/0!"}}]
["zobowiązania krótkoterminowe",0,null,"Wskaźnik cyklu konwersji zobowiązań krótkoterminowych",{"$f":"180*(B15/B17)","v":{"$error":"#DIV/0!"}}]
["aktywa razem",{"$f":"B9","v":0}]
["przychody netto ze sprzedaży produktów, towarów i materiałów",{"$f":"B8","v":0}]
[]
[]
["od 0 do 160 –poziom niski (akceptowalny),",null,"MWU=",{"$f":"(1/(1+EXP(-(-6.24+(-0.342*E13+0.544*E14+0.004*E15-1.44*E7-1.088*E8)))))*10000","v":{"$error":"#DIV/0!"}}]
["powyżej 160 do 200 – poziom ostrzegawczy,"]
["powyżej 200 –poziom wysoki."]
[]
[]
["*w sytuacji wskazanej wartości równej 0 zastosowany model ISR może nie mieć zastosowania do określenia kondycji przedsiębiorstwa."]
[]
[]
[null,null,null,"Data, podpis osoby upoważnionej do reprezentacji przedsiębiorstwa"]

{"sheet":"produkcyjne","index":3,"n_rows":29,"n_cols":5,"rows_kept":29,"cut":false,"hidden":false,"merged":[[2,0,2,3]]}
["Przedsiębiorstwa produkcyjne - nabór IV"]
[]
["Proszę o zweryfikowanie kondycji przedsiębiorstwa w oparciu o dane finansowe przedsiębiorcy w okresie 6 miesięcy przed datą zgłoszenia do Projektu."]
[]
["Proszę podać których 6 miesięcy dotyczą poniższe dane (np. 07.2021-12.2021):"]
[]
["Dane do wyliczenia wskaźników","wartość",null,"Rentowność ","wartość"]
["zysk (strata) na działalności operacyjnej ",0,null,"Wskaźnik rentowności operacyjnej aktywów",{"$f":"B8/B9","v":{"$error":"#DIV/0!"}}]
["aktywa razem*",0,null,"Wskaźnik rentowności operacyjnej sprzedaży",{"$f":"B8/B10","v":{"$error":"#DIV/0!"}}]
["przychody netto ze sprzedaży produktów, towarów i materiałów*",0]
[]
[]
["Dane do wyliczenia wskaźnika","wartość",null,"Analiza zadłużenia przedsiębiorstwa ","wartość"]
["zobowiązania i rezerwy na zobowiązania*",0,null,"Wskaźnik zadłużenia ogółem ",{"$f":"B14/B17","v":{"$error":"#DIV/0!"}}]
["zysk (strata) netto plus amortyzacja",0,null,"Wskaźnik zdolności obsługi zadłużenia ",{"$f":"B15/B14","v":{"$error":"#DIV/0!"}}]
["zobowiązania krótkoterminowe",null,null,"Wskaźnik cyklu konwersji zobowiązań krótkoterminowych",{"$f":"180*(B16/B18)","v":{"$error":"#DIV/0!"}}]
["aktywa razem",{"$f":"B9","v":0}]
["przychody netto ze sprzedaży produktów, towarów i materiałów",{"$f":"B10","v":0}]
[]
[]
["od 0 do 160 –poziom niski (akceptowalny),",null,"MWP=",{"$f":"(1/(1+EXP(-(-5.85+(-1.231*E8-0.492*E15-1.947*E9+0.62*E14+0.004*E16)))))*10000","v":{"$error":"#DIV/0!"}}]
["powyżej 160 do 200 – poziom ostrzegawczy,"]
["powyżej 200 –poziom wysoki."]
[]
[]
["*w sytuacji wskazanej wartości równej 0 zastosowany model ISR może nie mieć zastosowania do określenia kondycji przedsiębiorstwa."]
[]
[]
[null,null,null,"Data, podpis osoby upoważnionej do reprezentacji przedsiębiorstwa"]

{"sheet":"LISTY","index":4,"n_rows":17,"n_cols":8,"rows_kept":17,"cut":false,"hidden":true,"merged":[]}
["TYP",null,"województwa",null,"status",null,"wielkość","t_n"]
["jednoosobowa działalność gospodarcza",null,"dolnośląskie",null,"aktywna działalność gospodarcza",null,"mikro","TAK"]
["spółka cywilna",null,"kujawsko-pomorskie",null,"działalność jeszcze nie rozpoczęta",null,"małe","NIE"]
["spółka jawna",null,"lubelskie",null,"przedsiębiorstwo w stanie likwidacji",null,"średnie"]
["spółka partnerska",null,"lubuskie",null,"przedsiębiorstwo w stanie upadłości",null,"duże"]
["spółka komandytowa",null,"łódzkie",null,"działalność zawieszona"]
["spółka komandytowo-akcyjna",null,"małopolskie",null,"działalność zakończona"]
["spółka z ograniczoną odpowiedzialnością",null,"mazowieckie"]
["spółka akcyjna",null,"opolskie"]
[null,null,"podkarpackie"]
[null,null,"podlaskie"]
[null,null,"pomorskie"]
[null,null,"śląskie"]
[null,null,"świętokrzyskie"]
[null,null,"warmińsko-mazurskie"]
[null,null,"wielkopolskie"]
[null,null,"zachodniopomorskie"]